bitfinex-derivatives/quotes_ETHF0:USTF0_20251204
["timestamp","ask_amount","ask_price","bid_price","bid_amount"]
[1764806400361,3.2078,3189.6,3189.0,1.2954]
[1764806400557,4.2727,3189.5,3189.0,1.2954]
[1764806400759,4.2727,3189.5,3189.4,4.4078]
[1764806400965,4.61036601,3189.5,3189.4,4.4078]
[1764806402356,4.61036601,3189.5,3189.4,2.2366]
[1764806402867,0.33766601,3189.5,3189.4,4.4078]
[1764806403265,3.2078,3189.6,3189.2,1.1247874]
[1764806404261,3.2078,3189.6,3188.4,5.14217262]
[1764806404262,4.0024,3188.5,3188.4,5.14217262]
[1764806404467,3.2078,3188.8,3188.7,4.0139]
[1764806404965,3.2078,3189.4,3188.7,4.0139]
[1764806405163,4.3402759,3189.3,3189.2,1.8988]
[1764806405356,4.3402759,3189.3,3188.6,1.1247874]
[1764806405558,3.2078,3189.0,3188.9,4.0139]
[1764806407066,7.2102,3189.6,3189.5,1.8988]
[1764806407368,7.2102,3189.6,3189.1,1.1247874]
[1764806407369,7.54818795,3189.6,3189.1,1.1247874]
[1764806407664,0.33798795,3189.5,3189.0,2.2848874]
[1764806408364,4.0024,3189.1,3189.0,5.174]
[1764806408565,4.34035146,3189.1,3189.0,5.174]
[1764806409267,3.2078,3189.6,3189.5,5.174]
[1764806409565,4.00598653,3190.0,3189.9,4.0139]
[1764806409770,2.29368842,3190.0,3189.9,4.0139]
[1764806409969,0.34188842,3190.0,3189.9,4.0139]
[1764806410166,0.00358653,3190.0,3189.9,4.0139]
[1764806410564,0.00358653,3190.0,3189.9,5.1386874]
[1764806412070,3.2078,3190.5,3190.4,4.0139]
[1764806412870,3.2110047,3190.5,3190.4,4.0139]
[1764806413373,0.00470211,3190.8,3190.7,4.0139]
[1764806413670,0.00470211,3190.8,3190.7,5.13783518]
[1764806413868,4.0024,3190.7,3190.6,1.8988]
[1764806414260,4.0024,3190.7,3190.6,4.0139]
[1764806414469,0.00470211,3190.8,3190.7,4.0139]
[1764806414668,0.00816026,3190.8,3190.7,4.0139]
[1764806414976,3.2078,3191.3,3191.2,4.0139]
[1764806415472,3.18487886,3191.3,3191.2,4.17055]
[1764806415975,3.1887195,3191.3,3191.2,4.17055]
[1764806416163,0.00384064,3191.3,3191.2,7.37835]
[1764806416368,4.064e-05,3191.3,3191.2,7.37835]
[1764806418978,3.2078,3192.1,3192.0,5.174]
[1764806419181,3.2078,3192.5,3192.0,5.174]
[1764806419383,4.0024,3192.5,3192.4,1.8988]
[1764806419582,7.2102,3192.5,3192.4,4.0139]
[1764806419875,5.26244919,3192.5,3192.1,0.00470211]
[1764806420082,1.9518,3192.2,3192.1,4.01860211]
[1764806420680,7.21424919,3192.5,3192.4,1.8988]
[1764806421183,5.16364919,3192.5,3192.4,4.0139]
[1764806421879,3.21184919,3192.5,3192.4,4.0139]
[1764806423083,5.16364919,3192.5,3192.4,4.0139]
[1764806424281,7.21424919,3192.5,3192.4,4.0139]
[1764806424585,5.16364919,3192.5,3192.4,4.0139]
[1764806425084,3.21184919,3192.5,3192.4,4.0139]
[1764806426378,3.21184919,3192.5,3192.4,1.8988]
[1764806426588,1.9518,3192.2,3192.1,4.01860211]
[1764806426890,7.21424919,3192.5,3192.4,4.0139]
[1764806427080,3.21184919,3192.5,3192.4,4.0139]
[1764806427578,0.00404919,3192.5,3192.4,7.2217]
[1764806428378,0.00404919,3192.5,3192.4,7.37829]
[1764806428579,3.2078,3193.8,3192.7,4.0139]
[1764806428779,7.2102,3193.4,3193.3,1.8988]
[1764806429579,7.21335572,3193.4,3193.3,1.90218303]
[1764806429775,4.00555572,3193.4,3193.3,4.01728303]
[1764806432194,1.95495572,3193.4,3193.3,4.01728303]
[1764806432393,4.00555572,3193.4,3193.3,1.90218303]
[1764806433394,4.00555572,3193.4,3193.3,0.00338303]
[1764806435296,7.21335572,3193.4,3193.3,0.00338303]
[1764806435595,3.6642,3192.6,3192.5,1.843]
[1764806435889,1.7433,3192.6,3192.5,4.9188]
[1764806436493,1.7433,3192.6,3192.5,4.9218061]
[1764806437082,0.00315572,3193.4,3192.8,3.8347]
[1764806437389,3.66735572,3193.4,3193.3,1.843]
[1764806437892,3.6642,3193.1,3193.0,4.9188]
[1764806438088,6.872,3193.1,3193.0,4.9188]
[1764806438990,6.872,3193.1,3193.0,1.843]
[1764806439192,1.7433,3192.8,3192.7,7.0425]
[1764806439398,3.6642,3192.8,3192.7,3.2078]
[1764806439594,3.6642,3192.6,3192.5,5.0783861]
[1764806439786,3.6642,3192.6,3192.5,4.9218061]
[1764806440699,3.6642,3192.6,3192.5,2.9301061]
[1764806442298,3.6642,3192.6,3192.5,4.9218061]
[1764806442496,3.2078,3192.7,3192.6,3.6504]
[1764806442699,3.5209,3192.6,3192.5,4.7705061]
[1764806442894,3.5209,3192.6,3192.5,0.0030061]
[1764806443296,3.85844895,3192.6,3192.5,0.0030061]
[1764806443494,9.85844895,3192.6,3192.5,0.0030061]
[1764806443694,3.5209,3192.2,3191.5,4.3679]
[1764806443891,7.06624895,3192.2,3191.5,4.3679]
[1764806444597,7.06624895,3192.2,3192.1,0.00870481]
[1764806446096,13.06624895,3192.2,3192.1,0.00870481]
[1764806450797,7.06624895,3192.2,3192.1,0.00870481]
[1764806450990,7.06624895,3192.2,3191.0,4.2919]
[1764806451196,3.2078,3191.6,3191.0,4.2919]
[1764806451994,3.21250211,3191.6,3191.0,4.30034391]
[1764806452596,3.21250211,3191.6,3191.0,1.09254391]
[1764806454096,3.5209,3191.1,3191.0,0.00844391]
[1764806454289,3.86028791,3191.1,3191.0,0.00844391]
[1764806456298,3.86028791,3191.1,3189.8,0.15672]
[1764806456299,1.0321,3190.5,3189.4,1.11447473]
[1764806456498,0.7168,3189.1,3188.8,3.2078]
[1764806456696,0.7168,3189.1,3189.0,1.1171]
[1764806457196,0.7168,3189.1,3189.0,1.11958207]
[1764806457594,0.7168,3188.8,3188.7,0.00470211]
[1764806457895,0.3584,3188.1,3188.0,2.9435]
[1764806458090,3.5662,3188.1,3188.0,2.9435]
[1764806458689,3.56911876,3188.1,3188.0,2.94688931]
[1764806458994,3.56911876,3188.1,3188.0,4.77088931]
[1764806459493,3.21071876,3188.1,3188.0,4.77088931]
[1764806459692,3.56911876,3188.1,3188.0,4.77088931]
[1764806459895,3.21071876,3188.1,3188.0,4.77088931]
[1764806460403,0.00291876,3188.1,3188.0,4.77088931]
[1764806461198,0.7168,3187.6,3186.8,3.2078]
[1764806462206,0.7168,3187.6,3187.5,1.12080356]
[1764806463599,3.72341876,3188.1,3188.0,4.7353]
[1764806463903,1.0254,3187.6,3187.5,0.00370356]
[1764806464206,4.2332,3187.6,3187.5,0.00370356]
[1764806466110,1.0254,3187.3,3187.2,1.80610211]
[1764806466410,1.0254,3187.3,3187.2,0.00470211]
[1764806466907,1.0254,3187.3,3187.2,1.80610211]
[1764806467115,0.508,3187.0,3186.1,3.911089]
[1764806467410,3.2078,3186.9,3186.1,3.91360405]
[1764806467795,3.2078,3186.9,3186.1,3.65961505]
[1764806468000,3.2078,3186.9,3186.2,0.00470211]
[1764806468411,3.7158,3186.9,3186.8,3.6571]
[1764806468613,3.2078,3186.9,3186.8,3.6571]
[1764806469409,0.00470211,3187.6,3187.4,1.8014]
[1764806469410,3.7158,3187.5,3187.4,1.8014]
[1764806469802,3.2078,3187.5,3187.4,3.6571]
[1764806470008,0.00470211,3187.6,3187.5,4.7353]
[1764806470507,3.07725635,3187.9,3187.8,3.6571]
[1764806472611,3.58995635,3187.9,3187.8,3.6571]
[1764806472809,3.58995635,3187.9,3187.8,1.8014]
[1764806474517,4.10265635,3187.9,3187.5,1.0782]
[1764806474720,0.5127,3187.6,3187.5,2.8796]
[1764806475321,1.0254,3187.6,3187.5,2.8796]
[1764806475516,1.0254,3187.6,3187.5,1.0782]
[1764806477015,1.0254,3187.6,3187.5,2.8796]
[1764806477223,1.0254,3187.6,3187.5,1.0782]
[1764806477525,0.5127,3187.1,3187.0,4.7353]
[1764806478026,1.0254,3187.1,3186.5,1.0782]
[1764806478224,1.0254,3186.6,3186.5,2.8796]
[1764806478434,0.5127,3186.6,3186.5,2.8796]
[1764806478622,3.7205,3186.8,3186.7,3.6571]
[1764806479023,3.2078,3186.8,3186.7,3.6571]
[1764806479434,3.7205,3186.8,3186.7,3.6571]
[1764806479832,4.2332,3186.8,3186.7,1.8014]
[1764806480530,4.2332,3186.8,3186.5,1.0782]
[1764806481232,3.2078,3186.8,3186.7,3.6571]
[1764806481733,1.68544046,3188.1,3186.7,3.6571]
[1764806481926,3.2078,3187.3,3187.2,3.6571]
[1764806482128,5.39328727,3187.3,3187.2,3.6571]
[1764806482327,3.2078,3187.7,3187.2,3.6571]
[1764806483126,1.00057111,3187.6,3187.2,3.6571]
[1764806483324,4.54407111,3187.5,3187.4,3.6571]
[1764806484729,1.00057111,3187.5,3187.4,3.6571]
[1764806485530,2.85177111,3187.5,3187.4,3.6571]
[1764806485830,1.00057111,3187.5,3187.4,3.6571]
[1764806487534,2.85177111,3187.5,3187.4,3.6571]
[1764806488339,3.5435,3187.2,3186.7,3.2078]
[1764806488639,1.8512,3186.8,3186.7,6.8649]
[1764806488828,2.85177111,3186.8,3186.7,6.8649]
[1764806489833,1.00057111,3186.8,3186.7,3.6571]
[1764806490632,1.00057111,3186.8,3186.7,6.8649]
[1764806491738,1.00057111,3186.8,3186.7,3.6571]
[1764806492032,2.85177111,3186.8,3186.7,3.6571]
[1764806492237,1.00057111,3186.8,3186.7,3.6571]
[1764806494137,1.00057111,3186.8,3186.7,6.8649]
[1764806497638,1.00057111,3186.8,3186.7,3.6571]
[1764806499735,2.83227111,3186.8,3186.7,3.6571]
[1764806499938,1.00057111,3186.8,3186.7,3.6571]
[1764806500839,2.2433623,3187.5,3186.7,3.6571]
[1764806500840,1.68013903,3187.5,3187.4,3.3729]
[1764806501042,4.88793903,3187.7,3187.6,3.3729]
[1764806501839,1.68013903,3187.9,3187.8,3.3729]
[1764806502039,3.52223903,3187.9,3187.8,3.3729]
[1764806503246,1.8421,3187.9,3187.8,3.3729]
[1764806504248,3.6731,3187.9,3187.8,3.3729]
[1764806505147,1.8421,3187.9,3187.8,3.3729]
[1764806505648,3.6731,3187.9,3187.8,3.3729]
[1764806509338,1.68013903,3188.0,3187.9,3.3729]
[1764806509542,0.00291876,3188.1,3188.0,1.6944]
[1764806509543,3.67601876,3188.1,3188.0,1.6944]
[1764806509742,3.67601876,3188.1,3188.0,3.3729]
[1764806510140,0.00291876,3188.1,3188.0,4.3949]
[1764806511449,1.68013903,3188.9,3188.8,3.3729]
[1764806511653,4.5812,3189.5,3189.4,1.6944]
[1764806512151,3.2078,3189.7,3189.6,3.3729]
[1764806512346,3.21055857,3189.7,3189.6,3.37696528]
[1764806512751,0.3338949,3189.7,3189.6,3.37696528]
[1764806513049,0.00275857,3189.7,3189.6,6.58476528]
[1764806514451,1.84485857,3189.7,3189.6,6.58476528]
[1764806515842,1.84485857,3189.7,3189.6,0.00406528]
[1764806515843,6.88365857,3189.7,3189.6,0.00406528]
[1764806516056,3.6731,3189.2,3189.1,3.2078]
[1764806516250,3.6731,3189.2,3189.1,4.9022]
[1764806516444,1.8421,3189.2,3189.1,6.5807]
[1764806517057,4.692,3189.5,3189.4,3.3729]
[1764806517251,4.692,3189.5,3189.4,1.6944]
[1764806517456,1.8421,3189.2,3189.1,6.58331867]
[1764806518355,3.6731,3189.2,3189.1,1.69701867]
[1764806518654,3.6731,3189.2,3189.1,0.00261867]
[1764806518655,6.8809,3189.2,3189.1,0.00261867]
[1764806519958,3.6731,3188.9,3188.8,1.69910211]
[1764806520156,3.6731,3188.9,3188.8,0.00470211]
[1764806520554,3.6731,3188.9,3187.8,3.2078]
[1764806520754,3.6731,3188.9,3188.0,1.02467972]
[1764806521354,3.2078,3188.8,3188.0,1.02467972]
[1764806521556,3.2078,3188.8,3188.1,0.00470211]
[1764806521756,6.8809,3188.8,3188.7,1.6944]
[1764806522357,6.8809,3188.8,3188.1,0.00470211]
[1764806525556,3.7147,3187.4,3187.3,3.514]
[1764806525857,3.7147,3187.4,3186.8,3.2078]
[1764806526758,3.72197097,3187.4,3186.8,3.21160847]
[1764806527360,0.00727097,3187.4,3187.3,3.514]
[1764806530166,1.87167097,3187.4,3187.3,3.514]
[1764806531265,0.00727097,3187.4,3187.3,3.514]
[1764806532062,3.72197097,3187.4,3187.3,1.7724]
[1764806532264,1.8644,3186.9,3186.8,3.51780847]
[1764806532566,3.7147,3186.9,3186.8,0.00380847]
[1764806533156,4.7854,3186.5,3186.4,3.2078]
[1764806534160,4.7854,3186.5,3186.4,3.21041752]
[1764806536364,4.7854,3186.5,3185.5,1.0468]
[1764806536365,1.8644,3185.7,3185.6,4.9802]
[1764806536561,4.2785,3186.5,3186.0,3.514]
[1764806536757,1.0707,3186.5,3186.0,6.7218]
[1764806536965,3.2078,3186.9,3186.4,3.514]
[1764806537270,3.2078,3186.9,3186.4,3.51656053]
[1764806537465,5.0722,3186.9,3186.8,3.514]
[1764806537778,6.9225,3187.3,3187.2,1.7724]
[1764806537974,5.0722,3187.3,3187.2,3.514]
[1764806538479,1.8644,3187.3,3187.2,3.514]
[1764806538673,3.7147,3187.3,3187.2,1.7724]
[1764806539985,3.7147,3187.3,3186.9,3.2078]
[1764806540383,3.7147,3187.3,3187.2,1.7724]
[1764806540576,3.72197097,3187.4,3187.1,0.15685]
[1764806540880,1.8644,3187.2,3187.1,3.67085]
[1764806541086,3.7147,3187.2,3187.1,0.15685]
[1764806541277,4.7854,3187.0,3186.9,3.2078]
[1764806544285,1.8644,3187.0,3186.9,6.7218]
[1764806544489,3.21507097,3187.4,3186.9,6.7218]
[1764806545182,3.21507097,3187.4,3187.3,1.7724]
[1764806545372,5.07947097,3187.4,3187.3,3.514]
[1764806545887,3.21507097,3187.4,3187.3,3.514]
[1764806546085,5.07947097,3187.4,3187.3,3.514]
[1764806546575,0.00727097,3187.4,3187.3,3.514]
[1764806547389,1.87167097,3187.4,3187.3,6.7218]
[1764806547583,3.72197097,3187.4,3187.3,4.9802]
[1764806548287,3.72197097,3187.4,3187.3,6.7218]
[1764806548679,1.0707,3188.5,3187.3,6.7218]
[1764806548680,3.2078,3188.3,3187.3,6.7218]
[1764806548986,3.7147,3187.9,3187.8,1.7724]
[1764806549588,1.0707,3188.0,3187.3,6.7218]
[1764806549786,1.07819213,3188.0,3187.3,6.72650211]
[1764806550486,3.7147,3187.4,3187.3,6.72650211]
[1764806550692,1.8644,3187.4,3187.3,6.72650211]
[1764806551187,3.7147,3187.4,3187.3,3.21250211]
[1764806551691,3.7147,3187.4,3187.3,4.98490211]
[1764806552780,1.07819213,3188.0,3187.4,3.514]
[1764806552992,0.33122392,3187.9,3187.4,3.514]
[1764806554290,3.5662,3187.4,3187.3,3.21250211]
[1764806556892,6.774,3187.9,3187.8,1.7603]
[1764806557100,3.5662,3187.8,3187.7,4.9681]
[1764806557294,3.89759402,3187.8,3187.7,4.9681]
[1764806558092,0.33139402,3187.8,3187.7,6.8119]
[1764806558298,0.00749213,3188.0,3187.9,3.6041]
[1764806560395,0.00749213,3188.0,3187.9,4.72894273]
[1764806560597,3.2078,3188.8,3188.0,0.5234]
[1764806560800,3.89735994,3188.7,3188.6,1.7603]
[1764806561299,5.0806,3188.8,3188.7,1.7603]
[1764806561492,5.41159289,3188.8,3188.2,3.2078]
[1764806561693,5.08935943,3188.8,3188.2,3.21129873]
[1764806561997,4.90995943,3188.8,3188.7,3.6041]
[1764806562194,5.24098075,3188.8,3188.7,3.6041]
[1764806562394,0.00875943,3188.8,3188.7,3.6041]
[1764806563201,1.70215943,3188.8,3188.7,3.6041]
[1764806564200,0.00875943,3188.8,3188.7,3.6041]
[1764806566001,1.0517,3189.5,3188.7,3.6041]
[1764806566304,4.8527,3189.6,3189.5,3.3563]
[1764806566804,6.5245,3189.6,3189.5,3.3563]
[1764806566997,6.52839029,3189.6,3189.5,3.3563]
[1764806567200,3.21169029,3189.6,3189.5,3.3563]
[1764806567506,0.00389029,3189.6,3189.5,6.4248129]
[1764806567896,0.00389029,3189.6,3189.5,3.3563]
[1764806568199,0.00389029,3189.6,3189.5,4.2955]
[1764806568406,0.00389029,3189.6,3189.5,3.3563]
[1764806569204,0.00389029,3189.6,3189.5,4.2955]
[1764806569604,0.00389029,3189.6,3189.5,3.3563]
[1764806570094,0.00389029,3189.6,3189.5,4.2955]
[1764806571699,0.00470211,3189.9,3189.8,3.3563]
[1764806572800,0.00827262,3189.9,3189.8,3.3563]
[1764806574004,0.15664,3191.3,3189.8,3.3563]
[1764806574005,4.3684,3191.0,3190.9,1.6948]
[1764806574602,4.3684,3191.0,3190.5,3.2078]
[1764806575297,4.37236009,3191.0,3190.5,3.21178974]
[1764806577207,4.37236009,3191.0,3190.9,1.6948]
[1764806577511,0.00396009,3191.0,3190.9,3.3563]
[1764806577903,3.2078,3191.6,3191.5,3.3563]
[1764806578105,5.793,3192.0,3191.9,3.3563]
[1764806578406,3.2078,3192.4,3192.3,1.6615]
[1764806578608,3.2078,3192.4,3192.3,3.3563]
[1764806578807,3.3167,3192.1,3192.0,1.69950211]
[1764806579107,1.6449,3192.1,3192.0,3.36100211]
[1764806579509,3.21022641,3192.4,3192.0,3.36100211]
[1764806579711,1.6449,3192.1,3192.0,3.36100211]
[1764806580108,3.21022641,3192.4,3192.0,3.36100211]
[1764806580413,3.21022641,3192.4,3192.3,3.3563]
[1764806581411,0.00242641,3192.4,3192.3,3.3563]
[1764806582206,3.2078,3193.0,3192.9,3.3563]
[1764806582409,3.2078,3193.0,3192.2,5.3371129]
[1764806582410,7.4648,3193.0,3192.2,3.2078]
[1764806583411,0.00311003,3192.9,3192.2,3.21003789]
[1764806583610,3.0251,3192.3,3192.2,4.76623789]
[1764806583809,3.0251,3192.3,3192.2,0.00223789]
[1764806586108,3.0251,3191.7,3191.6,4.764]
[1764806586308,2.3807,3192.0,3191.9,3.2348]
[1764806586613,4.6454,3192.2,3192.1,1.5562]
[1764806586915,4.6454,3192.2,3192.1,3.2348]
[1764806587213,3.2078,3192.2,3192.1,3.23866546]
[1764806587409,6.2329,3192.2,3192.1,0.00386546]
[1764806588202,4.6454,3192.2,3192.1,3.23866546]
[1764806588715,2.3807,3192.5,3192.4,3.2348]
[1764806588923,2.3807,3192.5,3192.1,0.00386546]
[1764806588924,3.0251,3192.2,3192.1,0.00386546]
[1764806589213,3.0251,3192.2,3192.1,1.56006546]
[1764806589601,3.0251,3192.2,3192.1,0.00386546]
[1764806590207,6.2329,3192.2,3192.1,0.00386546]
[1764806594317,6.56255034,3192.2,3192.1,0.00386546]
[1764806595122,3.0251,3191.2,3191.1,3.2078]
[1764806595425,0.9431,3191.5,3191.1,6.4426]
[1764806595922,0.9431,3192.0,3191.4,3.2348]
[1764806596112,0.32998143,3191.9,3191.8,3.2348]
[1764806596309,4.6454,3192.1,3192.0,1.5562]
[1764806596515,4.97556311,3192.1,3192.0,1.5562]
[1764806596811,3.2078,3192.1,3192.0,3.2348]
[1764806597019,3.2078,3192.5,3192.4,3.2348]
[1764806597208,3.53793337,3192.5,3192.4,3.2348]
[1764806598324,3.35523337,3192.5,3192.4,3.2348]
[1764806598622,4.29833337,3192.5,3192.4,1.5562]
[1764806599127,4.29833337,3192.5,3192.0,1.89422086]
[1764806599322,1.76811236,3192.4,3192.3,1.5562]
[1764806599514,1.76811236,3192.4,3192.3,3.2348]
[1764806599828,0.33051236,3192.4,3192.3,3.2348]
[1764806601023,0.9431,3192.5,3192.4,3.2348]
[1764806601213,3.21091003,3192.9,3192.4,3.2348]
[1764806601415,0.99667663,3192.8,3192.4,3.2348]
[1764806601717,1.4376,3192.5,3192.4,3.2348]
[1764806601919,1.76842988,3192.5,3192.4,3.2348]
[1764806602618,4.29902988,3192.5,3192.0,1.89422086]
[1764806602820,3.9682,3192.5,3192.4,1.5562]
[1764806603025,4.29922216,3192.5,3192.4,1.5562]
[1764806604920,4.29922216,3192.5,3191.9,5.10202086]
[1764806605231,3.35612216,3192.4,3192.3,3.2348]
[1764806606329,1.76862216,3192.4,3192.3,3.2348]
[1764806606532,0.33102216,3192.4,3192.3,6.4426]
[1764806606930,3.35612216,3192.4,3192.3,6.4426]
[1764806607127,3.35612216,3192.4,3192.3,4.764]
[1764806607326,3.35612216,3192.4,3192.3,3.2078]
[1764806607534,3.35612216,3192.4,3192.3,4.764]
[1764806607831,3.35612216,3192.4,3192.3,3.2078]
[1764806608221,2.5306,3192.0,3191.9,3.2078]
[1764806608422,4.29922216,3192.0,3191.9,3.2078]
[1764806608624,1.4376,3191.6,3191.5,6.4426]
[1764806608829,1.76862216,3191.6,3191.5,6.4426]
[1764806609132,0.30957229,3191.6,3191.5,10.96234172]
[1764806609331,4.1509,3192.5,3191.5,9.06812086]
[1764806609633,1.4376,3191.6,3191.5,6.4426]
[1764806610826,3.0251,3191.6,3191.4,0.00773413]
[1764806611032,3.0251,3190.8,3190.7,3.2078]
[1764806611230,3.0251,3190.8,3190.7,4.764]
[1764806611829,1.4376,3190.8,3190.7,6.4426]
[1764806612031,1.4376,3190.8,3190.7,6.44620469]
[1764806612429,0.00470211,3191.1,3191.0,3.2348]
[1764806612630,0.00470211,3191.1,3191.0,5.12902086]
[1764806613024,3.02980211,3191.1,3191.0,1.5562]
[1764806613624,0.00470211,3191.1,3191.0,3.6024]
[1764806614233,0.00470211,3191.1,3191.0,3.2348]
[1764806614628,1.43260211,3191.1,3191.0,3.2348]
[1764806615628,0.00470211,3191.1,3191.0,3.2348]
[1764806617930,1.4279,3191.9,3191.8,1.3423]
[1764806618131,1.4279,3191.9,3191.8,2.8572]
[1764806618535,3.2078,3192.4,3191.9,2.8572]
[1764806618731,1.3558,3191.7,3191.6,7.87692086]
[1764806619229,0.85380211,3192.0,3191.6,7.87692086]
[1764806619430,3.62020211,3192.0,3191.9,1.3908]
[1764806621331,2.53820779,3192.0,3191.9,2.7749]
[1764806621530,2.20960211,3192.0,3191.9,2.7749]
[1764806623339,3.62020211,3192.0,3191.9,1.3908]
[1764806623636,2.7664,3191.9,3191.8,4.5986]
[1764806624834,1.3558,3191.9,3191.8,5.9827]
[1764806625736,2.7664,3191.9,3191.8,5.9827]
[1764806626743,1.3558,3191.9,3191.8,5.9827]
[1764806629344,3.7095,3192.5,3191.8,3.2078]
[1764806629638,0.9431,3192.5,3191.9,5.9827]
[1764806629835,3.7095,3192.5,3192.4,2.7749]
[1764806631231,1.36050211,3192.8,3192.7,1.3908]
[1764806631436,1.68912395,3192.8,3192.7,5.9827]
[1764806632550,1.68912395,3192.8,3192.7,3.2078]
[1764806632551,3.09972395,3192.8,3192.7,3.2078]
[1764806632949,2.7664,3192.3,3192.2,3.2078]
[1764806633352,2.7664,3192.3,3192.2,4.5986]
[1764806634558,2.7664,3192.3,3192.2,5.9827]
[1764806634757,2.7664,3192.3,3192.2,4.5986]
[1764806635554,2.7664,3192.3,3192.2,3.2078]
[1764806639460,2.7664,3191.7,3191.6,4.5986]
[1764806640056,2.7664,3191.7,3191.6,5.9827]
[1764806640561,2.2049,3192.0,3191.9,2.7749]
[1764806640858,3.6155,3192.5,3192.4,2.7749]
[1764806641059,3.94415566,3192.5,3192.4,2.7749]
[1764806641259,1.3558,3192.2,3192.1,4.66912086]
[1764806641449,3.09505566,3192.2,3192.1,2.7749]
[1764806641655,3.09505566,3192.2,3192.1,1.3908]
[1764806642556,3.09505566,3192.2,3191.7,1.89422086]
[1764806642755,2.7664,3192.2,3191.7,1.89422086]
[1764806643361,2.7664,3192.2,3192.1,2.7749]
[1764806643559,0.8142,3192.0,3191.5,2.5505108]
[1764806643754,0.8142,3192.0,3191.2,3.2078]
[1764806643755,2.8906,3191.4,3191.2,3.2078]
[1764806643959,3.21970911,3191.4,3191.2,3.2078]
[1764806644160,3.21970911,3191.4,3190.9,1.1179108]
[1764806644361,3.21970911,3191.4,3190.7,0.00360469]
[1764806644362,2.8906,3190.8,3190.7,0.00360469]
[1764806644556,3.24895119,3190.8,3190.7,0.00360469]
[1764806644757,3.7048,3190.5,3190.4,3.2078]
[1764806644962,4.06315119,3190.5,3190.4,4.6404]
[1764806645264,4.06315119,3190.5,3190.4,6.061]
[1764806645757,4.06610409,3190.5,3190.4,6.06351572]
[1764806645954,4.06610409,3190.5,3190.4,4.64291572]
[1764806646356,4.06610409,3190.5,3190.4,3.21031572]
[1764806646862,4.06610409,3190.5,3190.4,6.06351572]
[1764806647262,3.7077529,3190.5,3190.4,3.21031572]
[1764806647965,3.7077529,3190.5,3190.4,4.64291572]
[1764806648260,0.0029529,3190.5,3190.4,6.06351572]
[1764806650565,1.4570529,3190.5,3190.4,6.06351572]
[1764806650762,3.7077529,3190.5,3190.4,3.21031572]
[1764806651863,3.7077529,3190.5,3190.4,0.00251572]
[1764806652564,2.2712529,3190.5,3190.4,2.85571572]
[1764806654267,3.7077529,3190.5,3190.4,1.43511572]
[1764806654667,3.7077529,3190.5,3190.4,2.85571572]
[1764806654857,2.2712529,3190.5,3190.4,2.85571572]
[1764806655061,2.2712529,3190.5,3190.4,6.06351572]
[1764806655660,0.0029529,3190.5,3190.4,6.06351572]
[1764806658969,2.8906,3190.2,3190.1,1.43730211]
[1764806659170,2.8906,3190.2,3190.1,2.85790211]
[1764806659477,1.4541,3190.2,3190.1,2.85790211]
[1764806659964,2.2712529,3190.5,3190.4,2.8532]
[1764806660158,0.0029529,3190.5,3190.4,2.8532]
[1764806661271,3.7077529,3190.5,3190.4,2.8532]
[1764806661475,0.0029529,3190.5,3190.4,2.8532]
[1764806661675,0.0029529,3190.5,3190.4,8.18580662]
[1764806661873,0.00470211,3190.8,3190.7,2.8532]
[1764806662874,0.00720124,3190.8,3190.7,2.8532]
[1764806663378,3.2078,3191.6,3191.5,2.8532]
[1764806663673,6.0984,3191.6,3191.5,2.8532]
[1764806664281,6.10165174,3191.6,3191.5,2.8532]
[1764806664574,2.8906,3191.3,3191.2,3.2078]
[1764806664778,2.8906,3191.3,3190.6,4.6404]
[1764806664779,2.8906,3190.7,3190.6,4.6404]
[1764806665282,1.4541,3190.7,3190.6,6.061]
[1764806665466,1.4541,3190.7,3190.1,5.34017035]
[1764806665674,1.4541,3190.7,3190.6,2.8532]
[1764806666275,1.81158137,3190.7,3190.6,2.8532]
[1764806666677,0.35748137,3190.7,3190.6,2.8532]
[1764806666878,3.2078,3190.9,3190.8,2.8532]
[1764806667078,5.01938051,3190.9,3190.8,2.8532]
[1764806667675,6.45588051,3190.9,3190.1,5.49687035]
[1764806667870,0.35748051,3190.8,3190.1,5.49687035]
[1764806668478,0.35748051,3190.8,3190.1,3.37206373]
[1764806669470,3.24808051,3190.8,3190.7,1.4326]
[1764806670483,3.24808051,3190.8,3190.1,5.49687035]
[1764806670677,0.35748051,3190.7,3190.6,2.8532]
[1764806670882,6.0984,3191.3,3191.2,1.4326]
[1764806671078,3.24858989,3191.3,3191.2,1.4326]
[1764806671283,3.24858989,3191.3,3190.9,3.2078]
[1764806671481,3.7048,3191.0,3190.9,4.6404]
[1764806671681,4.06278989,3191.0,3190.9,4.6404]
[1764806671878,2.62628989,3191.0,3190.9,6.061]
[1764806672272,0.35798989,3191.0,3190.9,6.061]
[1764806675680,0.35867276,3191.4,3191.3,2.845]
[1764806676486,0.35867276,3191.4,3191.3,6.0528]
[1764806676691,0.00325174,3191.6,3191.5,3.4176]
[1764806676992,0.361847,3191.6,3191.5,3.4176]
[1764806678188,0.00325174,3191.6,3191.5,3.4176]
[1764806678581,0.361847,3191.6,3191.5,3.4176]
[1764806678781,0.00325174,3191.6,3191.5,3.4176]
[1764806679990,1.23525174,3191.6,3191.5,1.2395]
[1764806680291,2.56025174,3191.6,3191.5,2.5616]
[1764806681088,1.23525174,3191.6,3191.5,2.5616]
[1764806682489,0.00325174,3191.6,3191.5,2.5616]
[1764806682792,2.56025174,3191.6,3191.5,1.2395]
[1764806682992,2.91817786,3191.6,3191.5,1.2395]
[1764806683492,2.91817786,3191.6,3191.5,2.5616]
[1764806684288,2.91817786,3191.6,3191.3,3.2078]
[1764806684289,2.557,3191.4,3191.3,4.4755]
[1764806684488,2.557,3191.4,3191.3,3.2078]
[1764806684489,2.91489332,3191.4,3191.3,3.2078]
[1764806685293,2.91489332,3191.4,3190.9,3.2078]
[1764806685490,0.7532,3191.5,3190.9,3.2078]
[1764806685491,1.58989332,3191.3,3191.2,2.5898]
[1764806685692,0.00325174,3191.6,3191.5,2.5898]
[1764806686286,0.36117316,3191.6,3191.5,2.5898]
[1764806686793,0.00325174,3191.6,3191.5,2.5898]